fUSD/lending_fUSD_20260607
["ID","MTS","AMOUNT","RATE_DAILY","PERIOD"]
[424342816,1780768461000,-500.0,0.00038635,120]
[424342811,1780768461000,-500.0,0.00038635,120]
[424342813,1780768461000,-500.0,0.00038635,120]
[424342815,1780768461000,-500.0,0.00038635,120]
[424342819,1780768461000,-502.60210626,0.00038635,120]
[424342808,1780768461000,-476.43114714,0.00038635,120]
[424342828,1780768461000,-500.0,0.00038635,120]
[424342829,1780768461000,-606.80872146,0.00038635,120]
[424342831,1780768461000,-500.0,0.00038635,120]
[424342823,1780768461000,-500.0,0.00038635,120]
[424342824,1780768461000,-500.0,0.00038635,120]
[424342821,1780768461000,-500.0,0.00038635,120]
[424342826,1780768461000,-500.0,0.00038635,120]
[424342822,1780768461000,-500.0,0.00038635,120]
[424342834,1780768461000,-500.0,0.00038635,120]
[424342820,1780768461000,-500.0,0.00038635,120]
[424342827,1780768461000,-500.0,0.00038635,120]
[424342830,1780768461000,-500.0,0.00038635,120]
[424342818,1780768461000,-501.97613364,0.00038635,120]
[424342825,1780768461000,-648.4197138,0.00038635,120]
[424342902,1780768462000,-5000.0,0.00038635,120]
[424342918,1780768462000,-487.0,0.00038635,120]
[424342908,1780768462000,-334.0,0.00038635,12]
[424342898,1780768462000,-5000.0,0.00038635,120]
[424342897,1780768462000,-5000.0,0.00038635,120]
[424342894,1780768462000,-5000.0,0.00038635,120]
[424342901,1780768462000,-5000.0,0.00038635,120]
[424342896,1780768462000,-5000.0,0.00038635,120]
[424342899,1780768462000,-5000.0,0.00038635,120]
[424342906,1780768462000,-797.25977793,0.00038635,120]
[424342919,1780768462000,-487.0,0.00038635,120]
[424342900,1780768462000,-5000.0,0.00038635,120]
[424342911,1780768462000,-487.0,0.00038635,120]
[424342927,1780768462000,-487.0,0.00038635,120]
[424342910,1780768462000,-487.0,0.00038635,120]
[424342909,1780768462000,-487.0,0.00038635,120]
[424342912,1780768462000,-487.0,0.00038635,120]
[424342914,1780768462000,-487.0,0.00038635,120]
[424342916,1780768462000,-3686.88545764,0.00038635,120]
[424342915,1780768462000,-487.0,0.00038635,120]
[424342913,1780768462000,-487.0,0.00038635,120]
[424342917,1780768462000,-487.0,0.00038635,120]
[424342921,1780768462000,-487.0,0.00038635,120]
[424342920,1780768462000,-487.0,0.00038635,120]
[424342924,1780768462000,-487.0,0.00038635,120]
[424342930,1780768462000,-487.0,0.00038635,120]
[424342905,1780768462000,-797.0,0.00038635,120]
[424342907,1780768462000,-500.0,0.00038635,12]
[424342904,1780768462000,-500.0,0.00038635,120]
[424342882,1780768462000,-4120.13,0.00038635,120]
[424342895,1780768462000,-5000.0,0.00038635,120]
[424342929,1780768462000,-487.0,0.00038635,120]
[424342867,1780768462000,-4120.13,0.00038635,120]
[424342866,1780768462000,-4120.13,0.00038635,120]
[424342868,1780768462000,-4120.13,0.00038635,120]
[424342870,1780768462000,-4120.13,0.00038635,120]
[424342875,1780768462000,-4120.13,0.00038635,120]
[424342873,1780768462000,-4120.13,0.00038635,120]
[424342880,1780768462000,-4120.13,0.00038635,120]
[424342874,1780768462000,-4120.13,0.00038635,120]
[424342879,1780768462000,-4120.13,0.00038635,120]
[424342869,1780768462000,-4120.13,0.00038635,120]
[424342871,1780768462000,-4120.13,0.00038635,120]
[424342872,1780768462000,-4120.13,0.00038635,120]
[424342903,1780768462000,-5000.0,0.00038635,120]
[424342878,1780768462000,-4120.13,0.00038635,120]
[424342876,1780768462000,-4120.13,0.00038635,120]
[424342881,1780768462000,-4120.13,0.00038635,120]
[424342883,1780768462000,-4120.13,0.00038635,120]
[424342892,1780768462000,-5000.0,0.00038635,120]
[424342893,1780768462000,-5000.0,0.00038635,120]
[424342889,1780768462000,-5000.0,0.00038635,120]
[424342888,1780768462000,-5000.0,0.00038635,120]
[424342885,1780768462000,-4120.13,0.00038635,120]
[424342890,1780768462000,-5000.0,0.00038635,120]
[424342887,1780768462000,-4120.33355385,0.00038635,120]
[424342884,1780768462000,-4120.13,0.00038635,120]
[424342886,1780768462000,-4120.13,0.00038635,120]
[424342891,1780768462000,-5000.0,0.00038635,120]
[424342877,1780768462000,-4120.13,0.00038635,120]
[424342926,1780768462000,-487.0,0.00038635,120]
[424342923,1780768462000,-487.0,0.00038635,120]
[424342922,1780768462000,-487.0,0.00038635,120]
[424342962,1780768462000,-506.7,0.00038635,30]
[424342958,1780768462000,-800.0,0.00038635,120]
[424342963,1780768462000,-487.0,0.00038635,120]
[424342967,1780768462000,-800.0,0.00038635,120]
[424342965,1780768462000,-506.7,0.00038635,30]
[424342969,1780768462000,-487.0,0.00038635,120]
[424342968,1780768462000,-506.7,0.00038635,30]
[424342964,1780768462000,-800.0,0.00038635,120]
[424342966,1780768462000,-800.0,0.00038635,120]
[424342970,1780768462000,-800.0,0.00038635,120]
[424342972,1780768462000,-506.7,0.00038635,30]
[424342971,1780768462000,-506.7,0.00038635,30]
[424342973,1780768462000,-800.0,0.00038635,120]
[424342961,1780768462000,-800.0,0.00038635,120]
[424342977,1780768462000,-800.0,0.00038635,120]
[424342974,1780768462000,-506.7,0.00038635,30]
[424342976,1780768462000,-506.7,0.00038635,30]
[424342979,1780768462000,-506.7,0.00038635,30]
[424342978,1780768462000,-506.7,0.00038635,30]
[424342980,1780768462000,-506.7,0.00038635,30]
[424342981,1780768462000,-800.0,0.00038635,120]
[424342987,1780768462000,-506.7,0.00038635,30]
[424342989,1780768462000,-506.7,0.00038635,30]
[424342982,1780768462000,-506.7,0.00038635,30]
[424342988,1780768462000,-800.0,0.00038635,120]
[424342984,1780768462000,-800.0,0.00038635,120]
[424342985,1780768462000,-506.7,0.00038635,30]
[424342983,1780768462000,-506.7,0.00038635,30]
[424342975,1780768462000,-800.0,0.00038635,120]
[424342959,1780768462000,-487.0,0.00038635,120]
[424342986,1780768462000,-800.0,0.00038635,120]
[424342957,1780768462000,-506.7,0.00038635,30]
[424342928,1780768462000,-487.0,0.00038635,120]
[424342925,1780768462000,-487.0,0.00038635,120]
[424342931,1780768462000,-487.0,0.00038635,120]
[424342939,1780768462000,-487.0,0.00038635,120]
[424342942,1780768462000,-487.0,0.00038635,120]
[424342943,1780768462000,-800.0,0.00038635,120]
[424342941,1780768462000,-487.0,0.00038635,120]
[424342960,1780768462000,-506.7,0.00038635,30]
[424342944,1780768462000,-487.0,0.00038635,120]
[424342934,1780768462000,-487.0,0.00038635,120]
[424342940,1780768462000,-487.0,0.00038635,120]
[424342932,1780768462000,-487.0,0.00038635,120]
[424342937,1780768462000,-487.0,0.00038635,120]
[424342938,1780768462000,-487.0,0.00038635,120]
[424342933,1780768462000,-487.0,0.00038635,120]
[424342935,1780768462000,-487.0,0.00038635,120]
[424342936,1780768462000,-487.0,0.00038635,120]
[424342951,1780768462000,-800.0,0.00038635,120]
[424342952,1780768462000,-506.7,0.00038635,30]
[424342954,1780768462000,-487.0,0.00038635,120]
[424342950,1780768462000,-487.0,0.00038635,120]
[424342948,1780768462000,-487.0,0.00038635,120]
[424342953,1780768462000,-800.0,0.00038635,120]
[424342949,1780768462000,-800.0,0.00038635,120]
[424342947,1780768462000,-800.0,0.00038635,120]
[424342956,1780768462000,-487.0,0.00038635,120]
[424342945,1780768462000,-800.0,0.00038635,120]
[424342946,1780768462000,-487.0,0.00038635,120]
[424342955,1780768462000,-800.0,0.00038635,120]
[424343025,1780768463000,-1274.46023127,0.00038635,120]
[424343042,1780768463000,-288.4730503,0.00038635,90]
[424343033,1780768463000,-487.0,0.00038635,120]
[424343028,1780768463000,-13438.0,0.00038635,30]
[424343026,1780768463000,-100000.0,0.00038635,30]
[424343020,1780768463000,-1000.0,0.00038635,60]
[424343023,1780768463000,-1000.0,0.00038635,120]
[424343024,1780768463000,-1000.0,0.00038635,120]
[424343029,1780768463000,-1000.0,0.00038635,30]
[424343027,1780768463000,-1000.0,0.00038635,120]
[424343022,1780768463000,-1000.0,0.00038635,60]
[424343030,1780768463000,-487.0,0.00038635,120]
[424343043,1780768463000,-288.4730503,0.00038635,90]
[424343054,1780768463000,-1340.78055914,0.00038635,15]
[424343034,1780768463000,-657.89,0.00038635,120]
[424343032,1780768463000,-487.0,0.00038635,120]
[424343044,1780768463000,-808.19420691,0.00038635,120]
[424343039,1780768463000,-524.64701594,0.00038635,120]
[424343041,1780768463000,-421.8,0.00038635,120]
[424343037,1780768463000,-1000.0,0.00038635,30]
[424343040,1780768463000,-301.0,0.00038635,120]
[424343036,1780768463000,-1000.0,0.00038635,30]
[424343038,1780768463000,-1000.0,0.00038635,30]
[424343045,1780768463000,-706.07812797,0.00038635,120]
[424343047,1780768463000,-155.46089374,0.00038635,2]
[424343051,1780768463000,-500.0,0.00038635,2]
[424343058,1780768463000,-9515.6383936,0.00038635,2]
[424343031,1780768463000,-487.0,0.00038635,120]
[424343035,1780768463000,-1000.0,0.00038635,120]
[424343021,1780768463000,-1000.0,0.00038635,120]
[424343003,1780768463000,-506.7,0.00038635,30]
[424343014,1780768463000,-487.0,0.00038635,120]
[424343053,1780768463000,-250.98747312,0.00038635,2]
[424342990,1780768463000,-800.0,0.00038635,120]
[424342991,1780768463000,-506.7,0.00038635,30]
[424342993,1780768463000,-506.7,0.00038635,30]
[424342994,1780768463000,-506.7,0.00038635,30]
[424342992,1780768463000,-506.7,0.00038635,30]
[424343002,1780768463000,-506.7,0.00038635,30]
[424342995,1780768463000,-1000.0,0.00038635,120]
[424343005,1780768463000,-506.7,0.00038635,30]
[424343007,1780768463000,-166.013668,0.00038635,12]
[424343001,1780768463000,-506.7,0.00038635,30]
[424342999,1780768463000,-506.7,0.00038635,30]
[424343004,1780768463000,-506.7,0.00038635,30]
[424343010,1780768463000,-487.0,0.00038635,120]
[424342998,1780768463000,-506.7,0.00038635,30]
[424343006,1780768463000,-1000.0,0.00038635,120]
[424342997,1780768463000,-506.7,0.00038635,30]
[424343000,1780768463000,-506.7,0.00038635,30]
[424343015,1780768463000,-487.0,0.00038635,120]
[424343008,1780768463000,-487.0,0.00038635,120]
[424343016,1780768463000,-716.56,0.00038635,120]
[424343018,1780768463000,-519.25149054,0.00038635,120]
[424343017,1780768463000,-1000.0,0.00038635,60]
[424343019,1780768463000,-229.4,0.00038635,120]
[424343013,1780768463000,-5000.0,0.00038635,120]
[424343009,1780768463000,-487.0,0.00038635,120]
[424343012,1780768463000,-487.0,0.00038635,120]
[424343011,1780768463000,-487.0,0.00038635,120]
[424342996,1780768463000,-506.7,0.00038635,30]
[424343055,1780768463000,-59046.52483596,0.00038635,2]
[424343048,1780768463000,-1723.46334824,0.00038635,2]
[424343057,1780768463000,-560.78797971,0.00038635,2]
[424343086,1780768463000,-232.53817707,0.00038635,2]
[424343094,1780768463000,-2262.20131395,0.00038635,2]
[424343088,1780768463000,-631.84643387,0.00038635,2]
[424343087,1780768463000,-493.97654701,0.00038635,2]
[424343090,1780768463000,-10153.67521008,0.00038635,14]
[424343091,1780768463000,-562.42783237,0.00038635,2]
[424343096,1780768463000,-30090.54980477,0.00038635,30]
[424343089,1780768463000,-1628.1808065,0.00038635,2]
[424343092,1780768463000,-1037.83117101,0.00038635,2]
[424343093,1780768463000,-374.20902515,0.00038635,2]
[424343097,1780768463000,-1147.12151892,0.00038635,2]
[424343100,1780768463000,-176.35132943,0.00038635,120]
[424343099,1780768463000,-286.70498521,0.00038635,30]
[424343095,1780768463000,-1884.17925716,0.00038635,2]
[424343098,1780768463000,-132569.41026175,0.00038635,2]
[424343107,1780768463000,-172.95289627,0.00038635,90]
[424343106,1780768463000,-1977.09059542,0.00038635,5]
[424343108,1780768463000,-176.80238163,0.00038635,30]
[424343101,1780768463000,-12999.5070387,0.00038635,2]
[424343103,1780768463000,-509.22810047,0.00038635,30]
[424343105,1780768463000,-611.28223703,0.00038635,120]
[424343104,1780768463000,-509.68223828,0.00038635,30]
[424343110,1780768463000,-13735.8613335,0.00038635,2]
[424343109,1780768463000,-742.45183862,0.00038635,60]
[424343114,1780768463000,-3292.38194743,0.00038635,7]
[424343112,1780768463000,-700.0,0.00038635,2]
[424343115,1780768463000,-1073.94767769,0.00038635,30]
[424343046,1780768463000,-256965.17464214,0.00038635,30]
[424343102,1780768463000,-50266.21245488,0.00038635,120]
[424343084,1780768463000,-1100.0,0.00038635,2]
[424343111,1780768463000,-870.18868739,0.00038635,30]
[424343077,1780768463000,-678.59396483,0.00038635,2]
[424343085,1780768463000,-935.61727289,0.00038635,2]
[424343056,1780768463000,-1071.21954206,0.00038635,2]
[424343049,1780768463000,-255.97923807,0.00038635,2]
[424343050,1780768463000,-15924.62954688,0.00038635,3]
[424343052,1780768463000,-1295.96565312,0.00038635,2]
[424343070,1780768463000,-1690.43497052,0.00038635,18]
[424343060,1780768463000,-3523.55842477,0.00038635,2]
[424343071,1780768463000,-234.72060924,0.00038635,2]
[424343059,1780768463000,-1348.89952669,0.00038635,2]
[424343062,1780768463000,-2260.4911049,0.00038635,2]
[424343061,1780768463000,-37389.07445853,0.00038635,7]
[424343068,1780768463000,-998.04655198,0.00038635,2]
[424343063,1780768463000,-13218.50692085,0.00038635,2]
[424343064,1780768463000,-189.26573558,0.00038635,2]
[424343113,1780768463000,-58851.42083718,0.00038635,120]
[424343065,1780768463000,-15437.52650731,0.00038635,3]
[424343081,1780768463000,-1094.13131803,0.00038635,2]
[424343083,1780768463000,-350.89361748,0.00038635,2]
[424343079,1780768463000,-642.49605095,0.00038635,2]
[424343076,1780768463000,-1059.36183535,0.00038635,2]
[424343066,1780768463000,-5061.13420381,0.00038635,2]
[424343078,1780768463000,-376.08758077,0.00038635,14]
[424343080,1780768463000,-220.26181751,0.00038635,2]
[424343075,1780768463000,-1310.93384775,0.00038635,2]
[424343072,1780768463000,-178.13372156,0.00038635,2]
[424343074,1780768463000,-384.80628263,0.00038635,2]
[424343073,1780768463000,-502.60302755,0.00038635,3]
[424343067,1780768463000,-643.0,0.00038635,2]
[424343069,1780768463000,-589.2576719,0.00038635,2]
[424343082,1780768463000,-2500.0,0.00038635,2]
[424343169,1780768464000,-500.0,0.00038635,120]
[424343156,1780768464000,-500.0,0.00038635,60]
[424343155,1780768464000,-500.0,0.00038635,60]
[424343151,1780768464000,-3000.0,0.00038635,120]
[424343159,1780768464000,-500.0,0.00038635,60]
[424343152,1780768464000,-3443.09385526,0.00038635,120]
[424343149,1780768464000,-426.95036192,0.00038635,120]
[424343158,1780768464000,-500.0,0.00038635,60]
[424343153,1780768464000,-500.0,0.00038635,60]
[424343150,1780768464000,-151.0,0.00038635,2]
[424343154,1780768464000,-500.0,0.00038635,60]
[424343157,1780768464000,-500.0,0.00038635,60]
[424343170,1780768464000,-500.0,0.00038635,120]
[424343167,1780768464000,-500.0,0.00038635,120]
[424343162,1780768464000,-500.0,0.00038635,120]
[424343163,1780768464000,-500.0,0.00038635,120]
[424343160,1780768464000,-500.0,0.00038635,60]
[424343168,1780768464000,-448.8186844,0.00038635,120]
[424343161,1780768464000,-195.06,0.00038635,60]
[424343165,1780768464000,-500.0,0.00038635,120]
[424343166,1780768464000,-500.0,0.00038635,120]
[424343164,1780768464000,-500.0,0.00038635,120]
[424343173,1780768464000,-800.0,0.00038635,120]
[424343174,1780768464000,-800.0,0.00038635,120]
[424343172,1780768464000,-800.0,0.00038635,120]
[424343176,1780768464000,-800.0,0.00038635,120]
[424343148,1780768464000,-500.0,0.00038635,120]
[424343171,1780768464000,-500.0,0.00038635,120]
[424343147,1780768464000,-500.0,0.00038635,120]
[424343127,1780768464000,-341.17879216,0.00038635,120]
[424343139,1780768464000,-500.0,0.00038635,120]
[424343116,1780768464000,-20000.0,0.00038635,2]
[424343118,1780768464000,-5270.31786027,0.00038635,120]
[424343119,1780768464000,-549.0,0.00038635,30]
[424343117,1780768464000,-787.90010872,0.00038635,120]
[424343120,1780768464000,-889.07617527,0.00038635,30]
[424343121,1780768464000,-66093.22868465,0.00038635,15]
[424343123,1780768464000,-1018.07203124,0.00038635,120]
[424343122,1780768464000,-394.12580547,0.00038635,60]
[424343124,1780768464000,-208.83340934,0.00038635,120]
[424343134,1780768464000,-500.0,0.00038635,120]
[424343133,1780768464000,-334.5366879,0.00038635,30]
[424343129,1780768464000,-4035.74334115,0.00038635,2]
[424343128,1780768464000,-943.20137409,0.00038635,30]
[424343137,1780768464000,-500.0,0.00038635,120]
[424343132,1780768464000,-225.49310843,0.00038635,7]
[424343130,1780768464000,-1005.75901629,0.00038635,120]
[424343126,1780768464000,-2538.92841294,0.00038635,7]
[424343131,1780768464000,-493972.33076311,0.00038635,2]
[424343136,1780768464000,-500.0,0.00038635,120]
[424343142,1780768464000,-500.0,0.00038635,120]
[424343140,1780768464000,-500.0,0.00038635,120]
[424343141,1780768464000,-500.0,0.00038635,120]
[424343143,1780768464000,-500.0,0.00038635,120]
[424343144,1780768464000,-500.0,0.00038635,120]
[424343145,1780768464000,-500.0,0.00038635,120]
[424343135,1780768464000,-500.0,0.00038635,120]
[424343146,1780768464000,-500.0,0.00038635,120]
[424343138,1780768464000,-500.0,0.00038635,120]
[424343125,1780768464000,-5048.98891723,0.00038635,7]
[424343183,1780768464000,-800.0,0.00038635,120]
[424343175,1780768464000,-800.0,0.00038635,120]
[424343177,1780768464000,-800.0,0.00038635,120]
[424343211,1780768464000,-500.0,0.00038635,120]
[424343214,1780768464000,-500.0,0.00038635,120]
[424343210,1780768464000,-500.0,0.00038635,120]
[424343212,1780768464000,-500.0,0.00038635,120]
[424343215,1780768464000,-500.0,0.00038635,120]
[424343213,1780768464000,-500.0,0.00038635,120]
[424343216,1780768464000,-500.0,0.00038635,120]
[424343218,1780768464000,-338.87782167,0.00038635,120]
[424343217,1780768464000,-251.09824124,0.00038635,120]
[424343221,1780768464000,-500.0,0.00038635,120]
[424343223,1780768464000,-500.0,0.00038635,120]
[424343229,1780768464000,-500.0,0.00038635,60]
[424343224,1780768464000,-500.0,0.00038635,120]
[424343208,1780768464000,-500.0,0.00038635,120]
[424343227,1780768464000,-500.0,0.00038635,60]
[424343234,1780768464000,-500.0,0.00038635,120]
[424343226,1780768464000,-500.0,0.00038635,120]
[424343222,1780768464000,-500.0,0.00038635,120]
[424343232,1780768464000,-500.0,0.00038635,120]
[424343231,1780768464000,-500.0,0.00038635,120]
[424343228,1780768464000,-500.0,0.00038635,60]
[424343233,1780768464000,-500.0,0.00038635,120]
[424343236,1780768464000,-500.0,0.00038635,120]
[424343235,1780768464000,-500.0,0.00038635,120]
[424343237,1780768464000,-500.0,0.00038635,120]
[424343238,1780768464000,-500.0,0.00038635,120]
[424343239,1780768464000,-500.0,0.00038635,120]
[424343179,1780768464000,-800.0,0.00038635,120]
[424343230,1780768464000,-500.0,0.00038635,120]
[424343219,1780768464000,-500.0,0.00038635,120]
[424343225,1780768464000,-500.0,0.00038635,120]
[424343209,1780768464000,-500.0,0.00038635,120]
[424343182,1780768464000,-800.0,0.00038635,120]
[424343220,1780768464000,-500.0,0.00038635,120]
[424343178,1780768464000,-800.0,0.00038635,120]
[424343180,1780768464000,-800.0,0.00038635,120]
[424343181,1780768464000,-800.0,0.00038635,120]
[424343185,1780768464000,-162.4936,0.00038635,120]
[424343195,1780768464000,-500.0,0.00038635,120]
[424343196,1780768464000,-500.0,0.00038635,120]
[424343186,1780768464000,-178.6620124,0.00038635,120]
[424343193,1780768464000,-500.0,0.00038635,120]
[424343190,1780768464000,-500.0,0.00038635,120]
[424343187,1780768464000,-100000.0,0.00038635,30]
[424343192,1780768464000,-500.0,0.00038635,120]
[424343188,1780768464000,-500.0,0.00038635,120]
[424343184,1780768464000,-800.0,0.00038635,120]
[424343207,1780768464000,-500.0,0.00038635,120]
[424343189,1780768464000,-501.02350217,0.00038635,120]
[424343191,1780768464000,-500.0,0.00038635,120]
[424343197,1780768464000,-500.0,0.00038635,120]
[424343198,1780768464000,-500.0,0.00038635,120]
[424343199,1780768464000,-410.70096386,0.00038635,120]
[424343202,1780768464000,-500.0,0.00038635,120]
[424343206,1780768464000,-500.0,0.00038635,120]
[424343200,1780768464000,-500.0,0.00038635,120]
[424343203,1780768464000,-500.0,0.00038635,120]
[424343204,1780768464000,-500.0,0.00038635,120]
[424343194,1780768464000,-500.0,0.00038635,120]
[424343201,1780768464000,-500.0,0.00038635,120]
[424343205,1780768464000,-500.0,0.00038635,120]
[424343286,1780768465000,-500.0,0.00038635,120]
[424343287,1780768465000,-500.0,0.00038635,120]
[424343275,1780768465000,-500.0,0.00038635,120]
[424343284,1780768465000,-500.0,0.00038635,120]
[424343276,1780768465000,-500.0,0.00038635,120]
[424343285,1780768465000,-500.0,0.00038635,120]
[424343277,1780768465000,-500.0,0.00038635,120]
[424343280,1780768465000,-500.0,0.00038635,120]
[424343281,1780768465000,-500.0,0.00038635,120]
[424343279,1780768465000,-500.0,0.00038635,120]
[424343278,1780768465000,-500.0,0.00038635,120]
[424343283,1780768465000,-500.0,0.00038635,120]
[424343282,1780768465000,-500.0,0.00038635,120]
[424343289,1780768465000,-500.0,0.00038635,120]
[424343303,1780768465000,-500.0,0.00038635,120]
[424343300,1780768465000,-500.0,0.00038635,120]
[424343301,1780768465000,-500.0,0.00038635,120]
[424343288,1780768465000,-500.0,0.00038635,120]
[424343295,1780768465000,-500.0,0.00038635,120]
[424343296,1780768465000,-500.0,0.00038635,120]
[424343297,1780768465000,-500.0,0.00038635,120]
[424343294,1780768465000,-500.0,0.00038635,120]
[424343292,1780768465000,-476.65635628,0.00038635,120]
[424343293,1780768465000,-500.0,0.00038635,120]
[424343290,1780768465000,-500.0,0.00038635,120]
[424343291,1780768465000,-500.0,0.00038635,120]
[424343298,1780768465000,-500.0,0.00038635,120]
[424343305,1780768465000,-500.0,0.00038635,120]
[424343270,1780768465000,-13902.77692776,0.00038635,31]
[424343299,1780768465000,-500.0,0.00038635,120]
[424343271,1780768465000,-5187.47417137,0.00038635,60]
[424343242,1780768465000,-500.0,0.00038635,120]
[424343266,1780768465000,-550.55,0.00038635,120]
[424343246,1780768465000,-500.0,0.00038635,120]
[424343244,1780768465000,-500.0,0.00038635,120]
[424343247,1780768465000,-500.0,0.00038635,120]
[424343240,1780768465000,-500.0,0.00038635,120]
[424343245,1780768465000,-500.0,0.00038635,120]
[424343241,1780768465000,-570.34199238,0.00038635,120]
[424343243,1780768465000,-500.0,0.00038635,120]
[424343248,1780768465000,-500.0,0.00038635,120]
[424343250,1780768465000,-500.0,0.00038635,120]
[424343251,1780768465000,-500.0,0.00038635,120]
[424343302,1780768465000,-500.0,0.00038635,120]
[424343252,1780768465000,-500.0,0.00038635,120]
[424343249,1780768465000,-500.0,0.00038635,120]
[424343260,1780768465000,-500.0,0.00038635,120]
[424343269,1780768465000,-1258.46706134,0.00038635,120]
[424343257,1780768465000,-500.0,0.00038635,120]
[424343256,1780768465000,-500.0,0.00038635,120]
[424343253,1780768465000,-500.0,0.00038635,120]
[424343258,1780768465000,-500.0,0.00038635,120]
[424343255,1780768465000,-500.0,0.00038635,120]
[424343262,1780768465000,-3225234.84083226,0.00038635,20]
[424343272,1780768465000,-10213.97822478,0.00038635,60]
[424343261,1780768465000,-152.42,0.00038635,30]
[424343263,1780768465000,-124188.84479341,0.00038635,120]
[424343264,1780768465000,-10228.58417357,0.00038635,120]
[424343273,1780768465000,-240.89821991,0.00038635,2]
[424343274,1780768465000,-63355.75166364,0.00038635,30]
[424343265,1780768465000,-143790.00049242,0.00038635,30]
[424343267,1780768465000,-1095.47452693,0.00038635,2]
[424343268,1780768465000,-375.08775037,0.00038635,90]
[424343254,1780768465000,-500.0,0.00038635,120]
[424343304,1780768465000,-500.0,0.00038635,120]
[424343259,1780768465000,-500.0,0.00038635,120]
[424343307,1780768465000,-500.0,0.00038635,120]
[424343352,1780768465000,-895.07,0.00038635,120]
[424343341,1780768465000,-500.0,0.00038635,120]
[424343347,1780768465000,-895.07,0.00038635,120]
[424343344,1780768465000,-895.07,0.00038635,120]
[424343345,1780768465000,-895.07,0.00038635,120]
[424343348,1780768465000,-895.07,0.00038635,120]
[424343353,1780768465000,-895.07,0.00038635,120]
[424343343,1780768465000,-592.95769633,0.00038635,120]
[424343354,1780768465000,-895.07,0.00038635,120]
[424343346,1780768465000,-895.07,0.00038635,120]
[424343350,1780768465000,-895.07,0.00038635,120]
[424343349,1780768465000,-895.07,0.00038635,120]
[424343351,1780768465000,-895.07,0.00038635,120]
[424343355,1780768465000,-895.07,0.00038635,120]
[424343342,1780768465000,-895.07,0.00038635,120]
[424343357,1780768465000,-591.74,0.00038635,120]
[424343359,1780768465000,-591.74,0.00038635,120]
[424343356,1780768465000,-895.07,0.00038635,120]
[424343367,1780768465000,-500.0,0.00038635,120]
[424343360,1780768465000,-895.07774487,0.00038635,120]
[424343361,1780768465000,-591.74,0.00038635,120]
[424343366,1780768465000,-591.74,0.00038635,120]
[424343363,1780768465000,-591.74,0.00038635,120]
[424343362,1780768465000,-591.74,0.00038635,120]
[424343364,1780768465000,-591.74,0.00038635,120]
[424343365,1780768465000,-591.74,0.00038635,120]
[424343369,1780768465000,-500.0,0.00038635,120]
[424343368,1780768465000,-591.74,0.00038635,120]
[424343370,1780768465000,-591.74,0.00038635,120]
[424343371,1780768465000,-500.0,0.00038635,120]
[424343358,1780768465000,-895.07,0.00038635,120]
[424343335,1780768465000,-500.0,0.00038635,120]
[424343310,1780768465000,-500.0,0.00038635,120]
[424343340,1780768465000,-895.07,0.00038635,120]
[424343339,1780768465000,-500.0,0.00038635,120]
[424343312,1780768465000,-500.0,0.00038635,120]
[424343309,1780768465000,-500.0,0.00038635,120]
[424343311,1780768465000,-500.0,0.00038635,120]
[424343314,1780768465000,-156.07115497,0.00038635,120]